fUSD/lending_fUSD_20260613
["ID","MTS","AMOUNT","RATE_DAILY","PERIOD"]
[424961722,1781356280000,-153.73273642,0.00027515,7]
[424961732,1781356280000,-708.53,0.0002755,7]
[424961724,1781356280000,-157.31669765,0.00027515,7]
[424961729,1781356280000,-708.53,0.0002755,2]
[424961728,1781356280000,-708.53,0.0002755,7]
[424961730,1781356280000,-708.53,0.0002755,7]
[424961726,1781356280000,-472.92,0.0002755,2]
[424961723,1781356280000,-202.90926725,0.00027515,7]
[424961731,1781356280000,-708.53,0.0002755,2]
[424961727,1781356280000,-7206.44,0.0002755,30]
[424961717,1781356280000,-156.17684689,0.00027515,7]
[424961763,1781356280000,-508.56,0.00027593,2]
[424961813,1781356280000,-2500.0,0.00028,29]
[424961760,1781356280000,-3161.85,0.00027575,120]
[424961793,1781356280000,-472.74,0.00027824,2]
[424961794,1781356280000,-472.92,0.00027855,7]
[424961798,1781356280000,-472.92,0.00027885,30]
[424961796,1781356280000,-7206.44,0.00027872,2]
[424961797,1781356280000,-7215.37,0.00027872,2]
[424961795,1781356280000,-472.74,0.00027855,7]
[424961799,1781356280000,-472.74,0.00027885,30]
[424961800,1781356280000,-472.92,0.00027916,2]
[424961801,1781356280000,-472.74,0.00027916,2]
[424961806,1781356280000,-150.0,0.00027973,2]
[424961802,1781356280000,-472.92,0.00027946,7]
[424961792,1781356280000,-472.92,0.00027824,2]
[424961809,1781356280000,-508.56,0.00027984,2]
[424961807,1781356280000,-472.92,0.00027977,30]
[424961805,1781356280000,-1349.48,0.00027972,7]
[424961804,1781356280000,-1489.01,0.00027972,7]
[424961811,1781356280000,-600.0,0.00028,2]
[424961810,1781356280000,-200.0,0.00028,30]
[424961812,1781356280000,-218.0,0.00028,2]
[424961814,1781356280000,-472.92,0.00028007,2]
[424961815,1781356280000,-472.74,0.00028007,2]
[424961817,1781356280000,-7206.44,0.00028033,30]
[424961816,1781356280000,-350.0,0.00028019,10]
[424961765,1781356280000,-472.74,0.00027611,30]
[424961808,1781356280000,-472.74,0.00027977,30]
[424961789,1781356280000,-1489.01,0.00027816,2]
[424961803,1781356280000,-472.74,0.00027946,7]
[424961790,1781356280000,-1349.48,0.00027816,2]
[424961788,1781356280000,-472.74,0.00027794,30]
[424961762,1781356280000,-472.74,0.0002758,7]
[424961767,1781356280000,-472.74,0.00027641,2]
[424961766,1781356280000,-472.92,0.00027641,2]
[424961768,1781356280000,-501.0,0.00027644,11]
[424961770,1781356280000,-708.53,0.0002766,7]
[424961769,1781356280000,-735.4,0.0002766,7]
[424961776,1781356280000,-472.92,0.00027702,30]
[424961773,1781356280000,-1349.48,0.0002766,7]
[424961772,1781356280000,-1489.01,0.0002766,7]
[424961774,1781356280000,-472.92,0.00027672,7]
[424961771,1781356280000,-741.51,0.0002766,7]
[424961775,1781356280000,-472.74,0.00027672,7]
[424961764,1781356280000,-472.92,0.00027611,30]
[424961791,1781356280000,-3161.85,0.00027822,120]
[424961777,1781356280000,-472.74,0.00027702,30]
[424961779,1781356280000,-7215.37,0.00027711,7]
[424961782,1781356280000,-155.42,0.00027752,7]
[424961783,1781356280000,-473.49,0.00027754,2]
[424961787,1781356280000,-472.92,0.00027794,30]
[424961785,1781356280000,-472.74,0.00027763,7]
[424961786,1781356280000,-508.56,0.00027789,2]
[424961781,1781356280000,-472.74,0.00027733,2]
[424961780,1781356280000,-472.92,0.00027733,2]
[424961784,1781356280000,-472.92,0.00027763,7]
[424961778,1781356280000,-7206.44,0.00027711,7]
[424961855,1781356281000,-500.0,0.00028387,2]
[424961856,1781356281000,-500.0,0.00028391,2]
[424961854,1781356281000,-1000.0,0.00028384,2]
[424961853,1781356281000,-500.0,0.00028384,2]
[424961848,1781356281000,-7215.37,0.00028355,2]
[424961847,1781356281000,-7206.44,0.00028355,2]
[424961851,1781356281000,-500.0,0.00028376,2]
[424961850,1781356281000,-500.0,0.00028368,2]
[424961852,1781356281000,-508.56,0.00028376,2]
[424961860,1781356281000,-500.0,0.00028406,2]
[424961849,1781356281000,-500.0,0.00028361,2]
[424961863,1781356281000,-500.0,0.00028423,2]
[424961864,1781356281000,-500.0,0.00028429,2]
[424961857,1781356281000,-1352.357,0.00028396,2]
[424961858,1781356281000,-500.0,0.00028399,2]
[424961865,1781356281000,-500.0,0.00028437,2]
[424961859,1781356281000,-415.0,0.000284,120]
[424961861,1781356281000,-500.0,0.00028414,2]
[424961867,1781356281000,-500.0,0.00028452,2]
[424961866,1781356281000,-500.0,0.00028444,2]
[424961875,1781356281000,-168.5,0.00028493,2]
[424961874,1781356281000,-500.0,0.0002849,2]
[424961873,1781356281000,-500.0,0.00028482,2]
[424961869,1781356281000,-500.0,0.00028459,2]
[424961862,1781356281000,-500.0,0.00028422,2]
[424961846,1781356281000,-500.0,0.00028353,2]
[424961820,1781356281000,-472.74,0.00028038,7]
[424961844,1781356281000,-500.0,0.00028346,2]
[424961818,1781356281000,-7215.37,0.00028033,30]
[424961819,1781356281000,-472.92,0.00028038,7]
[424961821,1781356281000,-3161.85,0.00028068,120]
[424961822,1781356281000,-472.92,0.00028068,30]
[424961823,1781356281000,-472.74,0.00028068,30]
[424961832,1781356281000,-7206.44,0.00028194,7]
[424961824,1781356281000,-472.92,0.00028099,2]
[424961830,1781356281000,-508.56,0.0002818,2]
[424961825,1781356281000,-472.74,0.00028099,2]
[424961871,1781356281000,-500.0,0.00028467,2]
[424961829,1781356281000,-1349.57,0.0002813,2]
[424961827,1781356281000,-472.89,0.0002813,7]
[424961826,1781356281000,-473.04,0.0002813,7]
[424961828,1781356281000,-1489.1,0.0002813,2]
[424961834,1781356281000,-180.15,0.000282,7]
[424961833,1781356281000,-7215.37,0.00028194,7]
[424961835,1781356281000,-1410.0,0.00028267,2]
[424961836,1781356281000,-3161.85,0.00028315,120]
[424961837,1781356281000,-500.0,0.00028315,2]
[424961838,1781356281000,-500.0,0.00028315,2]
[424961841,1781356281000,-500.0,0.0002833,2]
[424961839,1781356281000,-1000.0,0.00028315,2]
[424961840,1781356281000,-500.0,0.00028323,2]
[424961842,1781356281000,-501.0,0.00028333,11]
[424961843,1781356281000,-500.0,0.00028338,2]
[424961845,1781356281000,-500.0,0.00028351,2]
[424961868,1781356281000,-1000.0,0.00028452,2]
[424961831,1781356281000,-4523.2144222,0.00028185,2]
[424961870,1781356281000,-500.0,0.0002846,2]
[424961908,1781356281000,-385.18405106,0.00028608,7]
[424961904,1781356281000,-237.2058826,0.00028606,7]
[424961907,1781356281000,-424.45545269,0.00028608,7]
[424961905,1781356281000,-336.08476412,0.00028608,7]
[424961906,1781356281000,-172.84039709,0.00028608,7]
[424961909,1781356281000,-300.60060419,0.00028608,7]
[424961910,1781356281000,-341.63909529,0.00028608,7]
[424961912,1781356281000,-220.57456637,0.00028608,7]
[424961914,1781356281000,-194.8392793,0.00028608,7]
[424961915,1781356281000,-247.02892797,0.00028608,5]
[424961918,1781356281000,-357.91901644,0.00028608,7]
[424961917,1781356281000,-328.89591765,0.00028608,2]
[424961916,1781356281000,-173.73957344,0.00028608,7]
[424961913,1781356281000,-332.87450168,0.00028608,7]
[424961921,1781356281000,-301.12593334,0.00028608,7]
[424961922,1781356281000,-168.62001591,0.00028608,7]
[424961920,1781356281000,-535.26387015,0.00028608,7]
[424961919,1781356281000,-310.59352665,0.00028608,7]
[424961924,1781356281000,-301.08725553,0.00028608,7]
[424961923,1781356281000,-241.45217659,0.00028608,7]
[424961929,1781356281000,-591.27183745,0.00028608,7]
[424961926,1781356281000,-306.58749095,0.00028608,7]
[424961927,1781356281000,-176.72664511,0.00028608,2]
[424961925,1781356281000,-317.54022769,0.00028608,7]
[424961872,1781356281000,-500.0,0.00028475,2]
[424961902,1781356281000,-500.0,0.00028603,2]
[424961903,1781356281000,-500.0,0.00028604,2]
[424961928,1781356281000,-248.28950335,0.00028608,7]
[424961911,1781356281000,-226.40288704,0.00028608,7]
[424961900,1781356281000,-176.51803256,0.0002859,2]
[424961878,1781356281000,-1596.39502617,0.000285,2]
[424961877,1781356281000,-500.0,0.00028498,2]
[424961888,1781356281000,-500.0,0.00028536,2]
[424961879,1781356281000,-183.021,0.000285,2]
[424961880,1781356281000,-500.0,0.00028505,2]
[424961885,1781356281000,-1000.0,0.00028521,2]
[424961883,1781356281000,-7215.37,0.00028516,30]
[424961881,1781356281000,-500.0,0.00028513,2]
[424961882,1781356281000,-7206.44,0.00028516,30]
[424961884,1781356281000,-500.0,0.00028521,2]
[424961887,1781356281000,-500.0,0.00028531,2]
[424961876,1781356281000,-500.0,0.00028495,2]
[424961889,1781356281000,-500.0,0.00028543,2]
[424961886,1781356281000,-500.0,0.00028528,2]
[424961901,1781356281000,-500.0,0.00028597,2]
[424961898,1781356281000,-500.0,0.00028589,2]
[424961896,1781356281000,-500.0,0.00028574,2]
[424961897,1781356281000,-500.0,0.00028581,2]
[424961899,1781356281000,-1000.0,0.00028589,2]
[424961894,1781356281000,-500.0,0.00028567,2]
[424961892,1781356281000,-3161.85,0.00028562,120]
[424961893,1781356281000,-500.0,0.00028566,2]
[424961890,1781356281000,-500.0,0.00028551,2]
[424961891,1781356281000,-500.0,0.00028559,2]
[424961895,1781356281000,-508.56,0.00028571,2]
[424961962,1781356282000,-359.68484758,0.00028652,7]
[424961966,1781356282000,-500.0,0.00028665,2]
[424961964,1781356282000,-500.0,0.00028658,2]
[424961958,1781356282000,-500.0,0.0002865,2]
[424961969,1781356282000,-4335.0,0.00028672,10]
[424961963,1781356282000,-1560.32,0.00028656,10]
[424961961,1781356282000,-415.56274001,0.00028652,7]
[424961968,1781356282000,-357.03150432,0.00028671,7]
[424961959,1781356282000,-366.81015477,0.00028652,7]
[424961960,1781356282000,-417.29959211,0.00028652,7]
[424961965,1781356282000,-1000.0,0.00028658,2]
[424961972,1781356282000,-429.79771381,0.00028673,2]
[424961970,1781356282000,-500.0,0.00028673,2]
[424961971,1781356282000,-502.0,0.00028673,7]
[424961976,1781356282000,-7215.37,0.00028677,7]
[424961977,1781356282000,-500.0,0.0002868,2]
[424961981,1781356282000,-500.0,0.00028711,2]
[424961975,1781356282000,-7206.44,0.00028677,7]
[424961978,1781356282000,-500.0,0.00028688,2]
[424961973,1781356282000,-500.0,0.00028676,2]
[424961974,1781356282000,-339.04886899,0.00028676,7]
[424961979,1781356282000,-500.0,0.00028696,2]
[424961952,1781356282000,-369.12910785,0.0002864,7]
[424961980,1781356282000,-500.0,0.00028703,2]
[424961967,1781356282000,-348.32943213,0.00028671,7]
[424961956,1781356282000,-306.46324435,0.00028647,7]
[424961941,1781356282000,-155.76910114,0.00028628,2]
[424961955,1781356282000,-500.0,0.00028642,2]
[424961982,1781356282000,-500.0,0.00028712,2]
[424961932,1781356282000,-155.15033319,0.00028608,7]
[424961933,1781356282000,-346.81151756,0.00028608,5]
[424961930,1781356282000,-434.80340319,0.00028608,7]
[424961931,1781356282000,-369.42771245,0.00028608,7]
[424961934,1781356282000,-375.11977718,0.00028612,7]
[424961937,1781356282000,-500.0,0.00028619,2]
[424961938,1781356282000,-205.46414914,0.00028623,7]
[424961935,1781356282000,-376.01790611,0.00028612,7]
[424961936,1781356282000,-500.0,0.00028612,2]
[424961939,1781356282000,-177.0,0.00028625,3]
[424961954,1781356282000,-329.23610827,0.0002864,7]
[424961940,1781356282000,-500.0,0.00028627,2]
[424961944,1781356282000,-303.53242149,0.00028632,7]
[424961945,1781356282000,-361.39113757,0.00028632,7]
[424961942,1781356282000,-175.98527621,0.00028628,2]
[424961947,1781356282000,-500.0,0.00028635,2]
[424961957,1781356282000,-347.5512272,0.00028647,7]
[424961946,1781356282000,-342.1038943,0.00028634,7]
[424961948,1781356282000,-303.08456257,0.00028635,7]
[424961951,1781356282000,-357.87198002,0.0002864,7]
[424961949,1781356282000,-500.0,0.0002864,2]
[424961950,1781356282000,-302.27705502,0.0002864,7]
[424961953,1781356282000,-342.39640772,0.0002864,7]
[424961943,1781356282000,-233.69312563,0.00028631,7]
[424961983,1781356282000,-500.0,0.00028718,2]
[424961986,1781356282000,-500.0,0.00028734,2]
[424962038,1781356282000,-370.25599632,0.00028852,7]
[424962014,1781356282000,-341.29761296,0.00028803,7]
[424962016,1781356282000,-3161.85,0.00028808,120]
[424962015,1781356282000,-322.07498912,0.00028803,7]
[424962017,1781356282000,-500.0,0.0002881,2]
[424962020,1781356282000,-404.66349918,0.00028813,7]
[424962021,1781356282000,-368.68439396,0.00028813,7]
[424962018,1781356282000,-344.45449047,0.00028813,7]
[424962022,1781356282000,-308.42929598,0.00028813,7]
[424962023,1781356282000,-412.83188314,0.00028813,7]
[424962026,1781356282000,-314.63339531,0.00028813,7]
[424962025,1781356282000,-405.81853451,0.00028813,7]
[424962019,1781356282000,-312.35369378,0.00028813,7]
[424962028,1781356282000,-500.0,0.0002882,2]
[424962030,1781356282000,-500.0,0.00028825,2]
[424962029,1781356282000,-202.0,0.0002882,30]
[424962032,1781356282000,-7202.36,0.00028838,2]
[424962031,1781356282000,-500.0,0.00028833,2]
[424962033,1781356282000,-7206.44,0.00028838,2]
[424962035,1781356282000,-500.0,0.0002884,2]
[424962034,1781356282000,-7215.37,0.00028838,2]
[424962036,1781356282000,-500.0,0.00028848,2]
[424962037,1781356282000,-350.0,0.00028852,12]
[424961987,1781356282000,-500.0,0.00028741,2]
[424962039,1781356282000,-343.64888301,0.00028852,7]
[424962027,1781356282000,-500.0,0.00028817,2]
[424962013,1781356282000,-395.44981867,0.00028803,7]
[424962024,1781356282000,-307.46547284,0.00028813,7]
[424962009,1781356282000,-10840.483019,0.000288,2]
[424961989,1781356282000,-500.0,0.00028748,2]
[424962010,1781356282000,-10000.0,0.000288,15]
[424961985,1781356282000,-1000.0,0.00028726,2]
[424961988,1781356282000,-4728.97,0.00028745,2]
[424961984,1781356282000,-500.0,0.00028726,2]
[424961990,1781356282000,-500.0,0.00028749,2]
[424961992,1781356282000,-500.0,0.00028764,2]
[424961994,1781356282000,-508.56,0.00028767,2]
[424961993,1781356282000,-185.64476922,0.00028765,2]
[424961996,1781356282000,-218.0466575,0.00028767,2]
[424961998,1781356282000,-1000.0,0.00028767,40]
[424961997,1781356282000,-150.0,0.00028767,2]
[424962000,1781356282000,-500.0,0.00028772,2]
[424961991,1781356282000,-500.0,0.00028756,2]
[424961999,1781356282000,-150.0,0.00028767,2]
[424961995,1781356282000,-500.0,0.00028767,2]
[424962008,1781356282000,-1000.0,0.00028795,2]
[424962012,1781356282000,-500.0,0.00028802,2]
[424962007,1781356282000,-500.0,0.00028795,2]
[424962006,1781356282000,-369.62957029,0.00028791,7]
[424962011,1781356282000,-1197.66,0.000288,30]
[424962005,1781356282000,-329.42825038,0.00028791,7]
[424962002,1781356282000,-500.0,0.00028784,2]
[424962003,1781356282000,-500.0,0.00028787,2]
[424962001,1781356282000,-500.0,0.00028779,2]
[424962004,1781356282000,-210.23472038,0.00028791,7]
[424962082,1781356283000,-500.0,0.00029,2]
[424962066,1781356283000,-200.0,0.00029,2]
[424962072,1781356283000,-500.0,0.00029,2]
[424962075,1781356283000,-500.0,0.00029,2]
[424962068,1781356283000,-200.0,0.00029,2]
[424962070,1781356283000,-500.0,0.00029,2]
[424962069,1781356283000,-500.0,0.00029,2]
[424962071,1781356283000,-200.0,0.00029,2]
[424962073,1781356283000,-500.0,0.00029,2]
[424962077,1781356283000,-500.0,0.00029,2]
[424962079,1781356283000,-500.0,0.00029,2]
[424962083,1781356283000,-200.0,0.00029,2]
[424962085,1781356283000,-500.0,0.00029,2]
[424962084,1781356283000,-500.0,0.00029,2]
[424962076,1781356283000,-200.0,0.00029,2]
[424962081,1781356283000,-200.0,0.00029,2]
[424962086,1781356283000,-200.0,0.00029,2]
[424962078,1781356283000,-200.0,0.00029,2]
[424962087,1781356283000,-500.0,0.00029,2]
[424962088,1781356283000,-200.0,0.00029,2]
[424962092,1781356283000,-500.0,0.00029,2]
[424962091,1781356283000,-500.0,0.00029,2]
[424962074,1781356283000,-500.0,0.00029,2]
[424962080,1781356283000,-500.0,0.00029,2]
[424962067,1781356283000,-500.0,0.00029,2]
[424962090,1781356283000,-217.22,0.00029,2]
[424962064,1781356283000,-200.0,0.00029,2]
[424962041,1781356283000,-179.2514722,0.00028852,2]
[424962042,1781356283000,-500.0,0.00028855,2]
[424962040,1781356283000,-348.25929958,0.00028852,7]
[424962043,1781356283000,-150.0,0.00028855,2]
[424962046,1781356283000,-500.0,0.00028856,2]
[424962045,1781356283000,-500.0,0.00028855,2]
[424962044,1781356283000,-150.0,0.00028855,2]
[424962048,1781356283000,-1000.0,0.00028863,2]
[424962047,1781356283000,-500.0,0.00028863,2]
[424962052,1781356283000,-1000.0,0.00028932,2]
[424962053,1781356283000,-508.56,0.00028963,2]
[424962065,1781356283000,-500.0,0.00029,2]
[424962051,1781356283000,-563.0,0.000289,2]
[424962050,1781356283000,-190545.0,0.000289,2]
[424962055,1781356283000,-200.0,0.00029,2]
[424962054,1781356283000,-32309.3249964,0.0002897,6]
[424962057,1781356283000,-500.0,0.00029,2]
[424962056,1781356283000,-200.0,0.00029,2]
[424962063,1781356283000,-500.0,0.00029,2]
[424962062,1781356283000,-500.0,0.00029,2]
[424962058,1781356283000,-200.0,0.00029,2]
[424962060,1781356283000,-500.0,0.00029,2]
[424962061,1781356283000,-200.0,0.00029,2]
[424962059,1781356283000,-200.0,0.00029,2]
[424962049,1781356283000,-818.0,0.000289,120]
[424962094,1781356283000,-500.0,0.00029,2]
[424962137,1781356283000,-788.80349131,0.00029,2]
[424962093,1781356283000,-500.0,0.00029,2]
[424962123,1781356283000,-204.43,0.00029,2]
[424962125,1781356283000,-216.0,0.00029,120]
[424962124,1781356283000,-586.0,0.00029,2]
[424962129,1781356283000,-42572.70464688,0.00029,2]
[424962128,1781356283000,-151.0,0.00029,2]
[424962130,1781356283000,-7802.91974,0.00029,2]
[424962127,1781356283000,-151.0,0.00029,2]
[424962131,1781356283000,-1567.51704436,0.00029,2]
[424962133,1781356283000,-10000.0,0.00029,2]
[424962138,1781356283000,-10000.0,0.00029,15]
[424962147,1781356283000,-5000.0,0.00029,2]
[424962132,1781356283000,-2902.0,0.00029,2]
[424962141,1781356283000,-500.0,0.00029,2]
[424962136,1781356283000,-1000.0,0.00029,2]
[424962134,1781356283000,-1578.66,0.00029,2]
[424962135,1781356283000,-2000.0,0.00029,2]
[424962139,1781356283000,-500.0,0.00029,2]
[424962142,1781356283000,-500.0,0.00029,2]
[424962140,1781356283000,-500.0,0.00029,2]
[424962144,1781356283000,-198.783362,0.00029,2]
[424962143,1781356283000,-10000.0,0.00029,2]
[424962145,1781356283000,-4815.54158386,0.00029,120]
[424962146,1781356283000,-5000.0,0.00029,30]
[424962122,1781356283000,-200.74677334,0.00029,120]
[424962121,1781356283000,-194.0,0.00029,2]
[424962126,1781356283000,-10000.0,0.00029,2]
[424962118,1781356283000,-892320.66385507,0.00029,2]
[424962096,1781356283000,-500.0,0.00029,2]
[424962095,1781356283000,-500.0,0.00029,2]
[424962098,1781356283000,-500.0,0.00029,2]
[424962099,1781356283000,-500.0,0.00029,2]
[424962097,1781356283000,-500.0,0.00029,2]
[424962120,1781356283000,-10259.8472554,0.00029,2]
[424962101,1781356283000,-330.03,0.00029,2]
[424962103,1781356283000,-227.5087134,0.00029,2]
[424962102,1781356283000,-180.15,0.00029,7]
[424962104,1781356283000,-108810.1273255,0.00029,2]
[424962106,1781356283000,-1001.69719294,0.00029,2]
[424962107,1781356283000,-219.92684846,0.00029,2]
[424962100,1781356283000,-500.0,0.00029,2]
[424962108,1781356283000,-164.0,0.00029,2]
[424962105,1781356283000,-5498.11489154,0.00029,120]
[424962119,1781356283000,-5223.23106425,0.00029,2]
[424962112,1781356283000,-10000.0,0.00029,2]
[424962115,1781356283000,-1000.0,0.00029,2]
[424962111,1781356283000,-10000.0,0.00029,2]
[424962116,1781356283000,-549.0,0.00029,2]
[424962089,1781356283000,-500.0,0.00029,2]
[424962117,1781356283000,-5964.29,0.00029,2]
[424962114,1781356283000,-5000.0,0.00029,2]
[424962109,1781356283000,-165.34379426,0.00029,2]
[424962110,1781356283000,-10000.0,0.00029,2]
[424962113,1781356283000,-3353.92554259,0.00029,2]
[424962151,1781356284000,-649169.90969802,0.00029,5]
[424962149,1781356284000,-153.8,0.00029,2]
[424962150,1781356284000,-86521.78444726,0.00029,2]
[424962148,1781356284000,-414.71621912,0.00029,2]
[424962164,1781356286000,-131.92955022,0.00027397,2]
[424962158,1781356286000,-268.0,0.000164,5]
[424962160,1781356286000,-804.28,0.00021667,2]
[424962161,1781356286000,-804.28,0.00023335,7]
[424962159,1781356286000,-804.28,0.0002,2]
[424962156,1781356286000,-779.350456,0.00027397,2]
[424962157,1781356286000,-647.42090578,0.00027397,2]
[424962153,1781356286000,-779.350456,0.00027397,2]
[424962152,1781356286000,-429576.47401146,0.00029,5]
[424962155,1781356286000,-779.350456,0.00027397,2]
[424962154,1781356286000,-324.54338279,0.00029,5]
[424962167,1781356286000,-779.350456,0.00027397,2]
[424962166,1781356286000,-779.350456,0.00027397,2]
[424962163,1781356286000,-804.28,0.0002667,7]
[424962168,1781356286000,-779.350456,0.00027397,2]
[424962165,1781356286000,-779.350456,0.00027397,2]
[424962169,1781356286000,-779.350456,0.00027397,2]
[424962170,1781356286000,-779.350456,0.00027397,2]
[424962173,1781356286000,-78390.45655404,0.00029,5]
[424962172,1781356286000,-779.35045,0.00027397,2]
[424962171,1781356286000,-779.350456,0.00027397,2]
[424962174,1781356286000,-228549.61338113,0.00029,5]
[424962162,1781356286000,-804.28,0.00025002,7]
[424962176,1781356287000,-17.93442568,0.00029,5]
[424962175,1781356287000,-1732.05960055,0.00029,5]
[424962177,1781356287000,-810.0,0.0001425,2]
[424962180,1781356287000,-1740.01784733,0.000147,2]
[424962178,1781356287000,-200.0,8.717e-05,2]
[424962181,1781356287000,-4998.02000007,0.000147,2]
[424962179,1781356287000,-602.394603,0.0001425,2]
[424962182,1781356288000,216.029201,7.57e-05,2]
[424962183,1781356423000,-1209.050799,7.57e-05,2]
[424962184,1781356541000,-500.0,7.569e-05,2]
[424962185,1781356596000,-630.55769637,7.569e-05,2]
[424962186,1781356770000,-926.336001,7.57e-05,2]
[424962187,1781357231000,-150.0,7.579e-05,2]
[424962188,1781357231000,-250.0,7.584e-05,2]
[424962190,1781357231000,-160.0,7.594e-05,2]
[424962191,1781357231000,-299.87209203,8.28e-05,2]
[424962189,1781357231000,-216.029201,7.592e-05,2]
[424962193,1781357243000,-139.27683877,8.308e-05,2]
[424962192,1781357243000,-200.05790797,8.28e-05,2]
[424962225,1781357432000,-310.0,8.288e-05,2]
[424962218,1781357432000,-309.0,8.287e-05,2]
[424962221,1781357432000,-628.82167542,8.287e-05,2]
[424962220,1781357432000,-314.0,8.287e-05,2]
[424962223,1781357432000,-150.0,8.287e-05,2]
[424962222,1781357432000,-198.96176601,8.287e-05,2]
[424962224,1781357432000,-318.0,8.288e-05,2]
[424962226,1781357432000,-309.0,8.288e-05,2]
[424962229,1781357432000,-313.0,8.288e-05,2]
[424962231,1781357432000,-319.0,8.288e-05,2]
[424962230,1781357432000,-309.0,8.288e-05,2]
[424962232,1781357432000,-320.0,8.288e-05,2]
[424962235,1781357432000,-314.0,8.288e-05,2]
[424962228,1781357432000,-310.0,8.288e-05,2]
[424962233,1781357432000,-312.0,8.288e-05,2]
[424962227,1781357432000,-310.0,8.288e-05,2]
[424962219,1781357432000,-309.0,8.287e-05,2]
[424962201,1781357432000,-318.0,8.142e-05,2]
[424962217,1781357432000,-320.0,8.287e-05,2]
[424962234,1781357432000,-312.0,8.288e-05,2]
[424962198,1781357432000,-313.0,8.142e-05,2]
[424962199,1781357432000,-315.0,8.142e-05,2]
[424962200,1781357432000,-317.0,8.142e-05,2]
[424962214,1781357432000,-317.0,8.287e-05,2]
[424962213,1781357432000,-313.0,8.287e-05,2]
[424962204,1781357432000,-802.41,8.143e-05,2]
[424962216,1781357432000,-319.0,8.287e-05,2]
[424962202,1781357432000,-312.0,8.142e-05,2]
[424962207,1781357432000,-300.0,8.245e-05,2]
[424962210,1781357432000,-309.0,8.287e-05,2]
[424962212,1781357432000,-320.0,8.287e-05,2]
[424962208,1781357432000,-300.0,8.245e-05,2]
[424962209,1781357432000,-300.0,8.245e-05,2]
[424962211,1781357432000,-316.0,8.287e-05,2]
[424962215,1781357432000,-309.0,8.287e-05,2]
[424962206,1781357432000,-168.58,8.219e-05,2]
[424962236,1781357432000,-314.0,8.288e-05,2]
[424962274,1781357432000,-245252.98164787,9.486e-05,2]
[424962238,1781357432000,-312.0,8.288e-05,2]
[424962259,1781357432000,-300.0,9.116e-05,2]
[424962260,1781357432000,-300.0,9.116e-05,2]
[424962263,1781357432000,-802.41,9.16e-05,2]
[424962268,1781357432000,-226.07,9.471e-05,2]
[424962265,1781357432000,-162.54,9.339e-05,2]
[424962262,1781357432000,-255.0,9.116e-05,2]
[424962267,1781357432000,-2500.0,9.386e-05,2]
[424962257,1781357432000,-8230.17047653,9.074e-05,2]
[424962261,1781357432000,-250.0,9.116e-05,2]
[424962266,1781357432000,-500.0,9.348e-05,2]
[424962269,1781357432000,-198.177,9.471e-05,2]
[424962270,1781357432000,-2410.162,9.471e-05,2]
[424962272,1781357432000,-6516.49691894,9.471e-05,2]
[424962273,1781357432000,-122210.05492738,9.486e-05,2]
[424962271,1781357432000,-250.0,9.471e-05,2]
[424962237,1781357432000,-316.0,8.288e-05,2]
[424962264,1781357432000,-475.8122652,9.316e-05,2]